bitfinex/quotes_BTCUSD_20250714
["timestamp","ask_amount","ask_price","bid_price","bid_amount"]
[1752524301582,0.00555386,119730.0,119720.0,1.17912505]
[1752524302004,0.00555386,119730.0,119720.0,1.21052505]
[1752524302272,0.0054721,119730.0,119720.0,1.21052505]
[1752524303114,0.0034721,119730.0,119720.0,1.21052505]
[1752524303322,0.0034721,119730.0,119720.0,1.21152505]
[1752524303563,0.0034721,119730.0,119720.0,1.50752505]
[1752524304650,0.0034721,119730.0,119720.0,1.55752505]
[1752524305082,0.002,119750.0,119740.0,0.62678584]
[1752524305290,0.002,119750.0,119740.0,1.13521295]
[1752524306338,0.002,119750.0,119740.0,0.71504994]
[1752524306550,0.002,119750.0,119740.0,1.13521295]
[1752524306762,0.002,119750.0,119740.0,0.58396994]
[1752524306980,0.08341112,119750.0,119740.0,0.71500994]
[1752524307192,0.08541112,119750.0,119740.0,0.71500994]
[1752524307417,0.004,119750.0,119740.0,1.13517295]
[1752524308045,0.004,119750.0,119740.0,0.71500994]
[1752524308273,0.004,119750.0,119740.0,1.13517295]
[1752524308922,0.004,119750.0,119740.0,0.74690994]
[1752524309131,0.004,119750.0,119740.0,1.16707295]
[1752524309557,0.004,119750.0,119740.0,1.03603295]
[1752524309763,0.004,119750.0,119740.0,1.13517295]
[1752524311756,0.004,119750.0,119740.0,1.00413295]
[1752524311966,0.004,119750.0,119740.0,0.71504994]
[1752524312212,0.004,119750.0,119740.0,0.58396994]
[1752524312427,0.02825017,119750.0,119740.0,0.71508994]
[1752524312648,0.1178116,119750.0,119740.0,0.57561901]
[1752524312879,0.2848267,119750.0,119740.0,0.67549567]
[1752524313324,0.11781209,119750.0,119740.0,1.04890016]
[1752524313328,0.29317736,119750.0,119740.0,1.04890016]
[1752524313542,0.30152809,119750.0,119740.0,0.56942923]
[1752524313773,0.11781209,119750.0,119740.0,0.56942923]
[1752524313956,0.12616275,119750.0,119740.0,0.91778016]
[1752524314364,0.29317736,119750.0,119740.0,0.91778016]
[1752524314726,0.12616275,119750.0,119740.0,0.91778016]
[1752524314941,0.29317736,119750.0,119740.0,0.91778016]
[1752524315136,0.12616275,119750.0,119740.0,0.91778016]
[1752524315621,0.12616275,119750.0,119740.0,1.17302317]
[1752524315622,0.0354,119750.0,119740.0,1.17302317]
[1752524315840,0.21206575,119750.0,119740.0,0.55246711]
[1752524316072,0.21871558,119750.0,119740.0,0.58816409]
[1752524316302,0.21871558,119750.0,119740.0,0.61321793]
[1752524316522,0.06005107,119750.0,119740.0,0.62992]
[1752524316746,0.004,119750.0,119740.0,1.19586386]
[1752524317663,0.004,119750.0,119740.0,0.77570085]
[1752524317878,0.2185153,119750.0,119740.0,0.62156907]
[1752524318088,0.22686596,119750.0,119740.0,0.62156907]
[1752524318296,0.05150062,119750.0,119740.0,0.62992]
[1752524318511,0.06820159,119750.0,119740.0,0.62992]
[1752524318948,0.04315024,119750.0,119740.0,0.62992]
[1752524319380,0.05150055,119750.0,119740.0,0.62992]
[1752524319823,0.04315024,119750.0,119740.0,0.62992]
[1752524320042,0.0348,119750.0,119740.0,0.62992]
[1752524320283,0.0348,119750.0,119740.0,1.05008301]
[1752524320284,0.004,119750.0,119740.0,1.05008301]
[1752524320500,0.004,119750.0,119740.0,1.18136301]
[1752524321152,0.01235017,119750.0,119740.0,1.18136301]
[1752524321372,0.03620055,119750.0,119740.0,0.7612]
[1752524321660,0.02785017,119750.0,119740.0,0.7612]
[1752524321877,0.03620048,119750.0,119740.0,0.7612]
[1752524322092,0.044551,119750.0,119740.0,0.7612]
[1752524322310,0.04455086,119750.0,119740.0,0.7612]
[1752524323032,0.05290138,119750.0,119740.0,0.7612]
[1752524323262,0.21961572,119750.0,119740.0,0.42113553]
[1752524323495,0.20739449,119730.0,119720.0,0.20236695]
[1752524323737,0.20739449,119730.0,119720.0,0.2670087]
[1752524323738,0.21574661,119730.0,119720.0,0.2670087]
[1752524323959,0.20739463,119730.0,119720.0,0.61536145]
[1752524324213,0.19904251,119730.0,119720.0,0.43995224]
[1752524324429,0.19904251,119730.0,119720.0,0.09995224]
[1752524325064,0.19904251,119730.0,119720.0,0.2670087]
[1752524325281,0.19904251,119730.0,119720.0,0.09995224]
[1752524325737,0.19904251,119730.0,119720.0,0.10095224]
[1752524326578,0.19904251,119730.0,119720.0,0.09995224]
[1752524326806,0.20836338,119730.0,119720.0,0.09995224]
[1752524327446,0.20836338,119730.0,119720.0,0.01860513]
[1752524330758,0.62852639,119730.0,119720.0,0.01860513]
[1752524330986,0.20836338,119730.0,119720.0,0.01860513]
[1752524332050,0.20836338,119730.0,119720.0,0.19401434]
[1752524332265,0.33952338,119730.0,119720.0,0.19401434]
[1752524332476,0.33952338,119730.0,119720.0,0.18566159]
[1752524332687,0.39952338,119730.0,119720.0,0.18566159]
[1752524332866,0.39952338,119730.0,119720.0,0.19401434]
[1752524333112,0.39116251,119730.0,119720.0,0.17540921]
[1752524333324,0.39116251,119730.0,119720.0,0.18376189]
[1752524333549,0.061,119730.0,119720.0,0.70197688]
[1752524333758,0.06935156,119730.0,119720.0,0.83305688]
[1752524333973,0.07770319,119730.0,119720.0,0.83305688]
[1752524334157,0.07770319,119730.0,119720.0,0.41289387]
[1752524334158,0.061,119730.0,119720.0,0.41289387]
[1752524334790,0.061,119730.0,119720.0,0.42743472]
[1752524335000,0.061,119730.0,119720.0,0.84759773]
[1752524335433,0.061,119730.0,119720.0,0.87829773]
[1752524335651,0.061,119730.0,119720.0,1.21829773]
[1752524335861,0.001,119730.0,119720.0,1.21829773]
[1752524337515,0.001,119730.0,119720.0,1.51429773]
[1752524337967,1e-08,119730.0,119720.0,1.51429773]
[1752524338458,0.002,119750.0,119740.0,0.65838584]
[1752524338673,0.002,119750.0,119740.0,0.87073295]
[1752524339786,0.002,119750.0,119740.0,0.83913295]
[1752524339996,0.004,119750.0,119740.0,0.83913295]
[1752524340214,0.004,119750.0,119740.0,0.41896994]
[1752524340942,0.02070041,119750.0,119740.0,0.41880994]
[1752524341366,0.0123501,119750.0,119740.0,0.41880994]
[1752524341580,0.004,119750.0,119740.0,0.41880994]
[1752524341768,0.01235017,119750.0,119740.0,0.41880994]
[1752524341979,0.02905093,119750.0,119740.0,0.61342937]
[1752524342205,0.03720041,119750.0,119740.0,0.6217803]
[1752524342408,0.004,119750.0,119740.0,0.6217803]
[1752524342837,0.004,119750.0,119740.0,1.08678416]
[1752524343055,0.002,119750.0,119740.0,1.08678416]
[1752524343281,0.002,119750.0,119740.0,1.38278416]
[1752524344836,0.0004,119760.0,119750.0,0.64432897]
[1752524345046,0.0004,119760.0,119750.0,0.85655608]
[1752524346219,0.0014,119760.0,119750.0,0.85655608]
[1752524348412,0.0014,119760.0,119750.0,1.19655608]
[1752524348622,0.0014,119760.0,119750.0,1.63125994]
[1752524348838,0.0014,119760.0,119750.0,1.21109693]
[1752524349103,0.0014,119760.0,119750.0,1.50709693]
[1752524350455,0.0004,119760.0,119750.0,1.50709693]
[1752524353087,2.473e-05,119760.0,119750.0,1.50709693]
[1752524354003,2.473e-05,119760.0,119750.0,1.53213693]
[1752524355791,0.05513585,119780.0,119770.0,0.54657472]
[1752524356012,0.05513585,119780.0,119770.0,0.75844183]
[1752524356288,0.05528971,119780.0,119770.0,0.75844183]
[1752524357246,0.05828971,119780.0,119770.0,0.75844183]
[1752524357462,0.05828971,119780.0,119770.0,1.17860484]
[1752524359006,0.00315386,119780.0,119770.0,1.17860484]
[1752524359878,0.00307212,119780.0,119770.0,1.17860484]
[1752524360762,0.00307212,119780.0,119770.0,1.20980484]
[1752524361187,0.00307212,119780.0,119770.0,1.50580484]
[1752524362878,7.212e-05,119780.0,119770.0,1.50580484]
[1752524363110,3.49e-06,119780.0,119770.0,1.50580484]
[1752524363341,3.49e-06,119780.0,119770.0,1.50680484]
[1752524363578,3.49e-06,119780.0,119770.0,1.55680484]
[1752524363773,0.0024,119790.0,119780.0,0.98468086]
[1752524364043,0.00291268,119790.0,119780.0,1.21096882]
[1752524364494,0.00291268,119790.0,119780.0,1.23600182]
[1752524366375,0.00291268,119790.0,119780.0,0.81583881]
[1752524366648,0.00291268,119790.0,119780.0,1.23600182]
[1752524366889,0.00291268,119790.0,119780.0,1.53200182]
[1752524371321,0.00291268,119790.0,119780.0,1.40160182]
[1752524371566,0.00291268,119790.0,119780.0,1.53176182]
[1752524373270,0.0001602,119800.0,119790.0,0.99820568]
[1752524373540,0.0001602,119800.0,119790.0,1.20983279]
[1752524373973,0.00222795,119810.0,119800.0,0.22428578]
[1752524374232,0.00222795,119810.0,119800.0,0.8560359]
[1752524374453,0.00222795,119810.0,119800.0,0.43587289]
[1752524374668,0.00222795,119810.0,119800.0,0.8644669]
[1752524375754,0.00222795,119810.0,119800.0,0.8675869]
[1752524375971,0.00222795,119810.0,119800.0,0.8696869]
[1752524376420,0.05493907,119820.0,119810.0,0.54651062]
[1752524376633,0.05705278,119820.0,119810.0,0.75805773]
[1752524377779,0.07415278,119820.0,119810.0,0.75805773]
[1752524378650,0.07415278,119820.0,119810.0,1.05405773]
[1752524379309,0.10865371,119820.0,119810.0,0.9238578]
[1752524379525,0.28391646,119820.0,119810.0,1.03113082]
[1752524379751,0.29226224,119820.0,119810.0,0.90931688]
[1752524379969,0.30060809,119820.0,119810.0,0.90931688]
[1752524380185,0.1253452,119820.0,119810.0,0.90931688]
[1752524380392,0.11699942,119820.0,119810.0,0.90931688]
[1752524380618,0.1253452,119820.0,119810.0,0.90931688]
[1752524380846,0.28391688,119820.0,119810.0,0.90097082]
[1752524381095,0.69573446,119820.0,119810.0,0.296]
[1752524381314,0.21415423,119790.0,119780.0,0.002]
[1752524381540,0.21611423,119790.0,119780.0,0.26701695]
[1752524381757,0.21611423,119790.0,119780.0,0.59866852]
[1752524381990,0.21027664,119790.0,119780.0,0.08334711]
[1752524382214,0.20192884,119790.0,119780.0,0.08334711]
[1752524382430,0.20192884,119790.0,119780.0,0.26701695]
[1752524382642,0.20192884,119790.0,119780.0,0.25866852]
[1752524382859,0.20192884,119790.0,119780.0,0.60701708]
[1752524383081,0.20192884,119790.0,119780.0,0.59866852]
[1752524384687,0.20292884,119790.0,119780.0,0.59866852]
[1752524384924,0.20292884,119790.0,119780.0,0.42334711]
[1752524385154,0.20292884,119790.0,119780.0,0.59031989]
[1752524385373,0.20292884,119790.0,119780.0,0.60701695]
[1752524386478,0.20680671,119790.0,119780.0,0.62058524]
[1752524386703,0.22797231,119790.0,119780.0,0.61536524]
[1752524386909,0.22546231,119790.0,119780.0,0.61536524]
[1752524387154,0.22797231,119790.0,119780.0,0.61536524]
[1752524388239,0.22797231,119790.0,119780.0,0.62371346]
[1752524388923,0.22797231,119790.0,119780.0,0.63206161]
[1752524389230,0.22797231,119790.0,119780.0,0.62371346]
[1752524391084,0.0315,119790.0,119780.0,0.63728161]
[1752524391308,0.16447029,119790.0,119780.0,0.63728161]
[1752524391529,0.20114029,119790.0,119780.0,0.63206161]
[1752524391747,0.19028242,119790.0,119780.0,0.63206161]
[1752524391962,0.18193476,119790.0,119780.0,0.63206161]
[1752524392433,0.17162731,119790.0,119780.0,0.63728161]
[1752524392667,0.17997476,119790.0,119780.0,0.63728161]
[1752524393096,0.18193476,119790.0,119780.0,1.06642252]
[1752524393316,0.37393672,119790.0,119780.0,0.60701695]
[1752524393538,0.78054535,119790.0,119780.0,0.59866838]
[1752524393758,0.35140444,119790.0,119780.0,0.61536503]
[1752524393988,0.35975238,119790.0,119780.0,0.61536503]
[1752524394859,0.35528238,119790.0,119780.0,0.62893318]
[1752524395074,0.35975238,119790.0,119780.0,0.62371318]
[1752524395515,0.1799756,119790.0,119780.0,0.62581318]
[1752524395740,0.04154738,119790.0,119780.0,0.62893318]
[1752524395959,0.14969497,119790.0,119780.0,1.05285409]
[1752524396170,0.1647949,119790.0,119780.0,1.05285409]
[1752524396401,0.15644738,119790.0,119780.0,1.05285409]
[1752524397488,0.16479497,119790.0,119780.0,1.05285409]
[1752524397701,0.16479497,119790.0,119780.0,0.62371318]
[1752524397912,0.1628349,119790.0,119780.0,0.62893318]
[1752524398114,0.1647949,119790.0,119780.0,0.62893318]
[1752524398333,0.1647949,119790.0,119780.0,0.62371318]
[1752524398812,0.15448738,119790.0,119780.0,0.62893318]
[1752524399262,0.16283497,119790.0,119780.0,0.62893318]
[1752524399478,0.1647949,119790.0,119780.0,1.05285409]
[1752524399700,0.15644738,119790.0,119780.0,0.62371318]
[1752524399915,0.15448738,119790.0,119780.0,0.62893318]
[1752524400134,0.15644738,119790.0,119780.0,0.62893318]
[1752524400356,0.1673049,119790.0,119780.0,0.62371318]
[1752524400601,0.15448738,119790.0,119780.0,0.62581318]
[1752524400826,0.15448738,119790.0,119780.0,0.62893318]
[1752524401245,0.15644738,119790.0,119780.0,0.62371318]
[1752524401463,0.16730483,119790.0,119780.0,0.62371318]
[1752524401690,0.16479483,119790.0,119780.0,0.62893318]
[1752524401939,0.15448738,119790.0,119780.0,0.62893318]
[1752524402920,0.15644738,119790.0,119780.0,1.05807409]
[1752524403151,0.1647949,119790.0,119780.0,1.05285409]
[1752524403388,0.17314256,119790.0,119780.0,0.62371318]
[1752524403637,0.77970542,119790.0,119780.0,0.002]
[1752524404829,0.83970542,119790.0,119780.0,0.002]
[1752524405520,0.70966542,119790.0,119780.0,0.002]
[1752524405743,0.83962542,119790.0,119780.0,0.002]
[1752524406459,1.25997253,119790.0,119780.0,0.002]
[1752524406657,1.26197253,119790.0,119780.0,0.002]
[1752524406873,1.34128987,119790.0,119780.0,0.002]
[1752524407332,1.34528987,119790.0,119780.0,0.002]
[1752524407800,1.34128987,119790.0,119780.0,0.002]
[1752524408240,1.34628987,119790.0,119780.0,0.002]
[1752524409131,1.33659695,119790.0,119780.0,0.002]
[1752524409582,1.20216695,119790.0,119780.0,0.00405]
[1752524409806,1.12084961,119790.0,119780.0,0.007]
[1752524410034,1.25521961,119790.0,119780.0,0.002]
[1752524411832,0.63413288,119770.0,119760.0,0.002]
[1752524412050,0.76608288,119770.0,119760.0,0.002]
[1752524412288,0.84992999,119770.0,119760.0,0.002]
[1752524413187,0.85192999,119770.0,119760.0,0.00251268]
[1752524413417,0.84992999,119770.0,119760.0,0.00251268]
[1752524413887,0.85492999,119770.0,119760.0,0.00251268]
[1752524417879,0.72047999,119770.0,119760.0,0.00751268]
[1752524418126,0.85480999,119770.0,119760.0,0.00251268]
[1752524418345,1.27608733,119770.0,119760.0,0.00251268]
[1752524418987,1.19472999,119770.0,119760.0,0.00251268]
[1752524419209,1.19023999,119770.0,119760.0,0.00751268]
[1752524419630,0.55968489,119770.0,119760.0,0.00751268]
[1752524419847,1.11087288,119770.0,119760.0,0.00251268]
[1752524420083,1.11338288,119770.0,119760.0,0.00251268]
[1752524420513,1.19470022,119770.0,119760.0,0.00251268]
[1752524420729,1.27604733,119770.0,119760.0,0.00251268]
[1752524421164,0.85210934,119770.0,119760.0,0.00456268]
[1752524421385,1.06047999,119770.0,119760.0,0.00251268]
[1752524421595,1.19480999,119770.0,119760.0,0.00251268]
[1752524422068,1.19229999,119770.0,119760.0,0.00251268]
[1752524422288,1.06496999,119770.0,119760.0,0.00251268]
[1752524422726,1.19492999,119770.0,119760.0,0.00251268]
[1752524423180,1.27624733,119770.0,119760.0,0.00251268]
[1752524424753,1.27624733,119770.0,119760.0,1e-08]
[1752524427328,1.81023617,119770.0,119760.0,1e-08]
[1752524427546,1.39078818,119770.0,119760.0,1e-08]
[1752524428186,1.38578818,119770.0,119760.0,1e-08]
[1752524428402,1.38978818,119770.0,119760.0,1e-08]
[1752524428658,1.38978818,119770.0,119760.0,0.00500001]
[1752524428659,0.96585019,119770.0,119760.0,0.00500001]
[1752524428874,1.78529818,119770.0,119760.0,0.00500001]
[1752524429089,2.22713949,119770.0,119760.0,1e-08]
[1752524429310,2.22964949,119770.0,119760.0,1e-08]
[1752524429533,1.74748484,119770.0,119760.0,1e-08]
[1752524429789,1.47166665,119770.0,119760.0,1e-08]
[1752524430015,1.05666665,119770.0,119760.0,1e-08]
[1752524430234,1.17062665,119770.0,119760.0,1e-08]
[1752524430677,1.04066665,119770.0,119760.0,1e-08]
[1752524430899,1.18592665,119770.0,119760.0,1e-08]
[1752524431118,1.16039165,119770.0,119760.0,1e-08]
[1752524431333,0.82039165,119770.0,119760.0,1e-08]
[1752524431550,0.90170899,119770.0,119760.0,1e-08]
[1752524431758,0.48228934,119770.0,119760.0,1e-08]
[1752524431973,0.400972,119770.0,119760.0,1e-08]
[1752524433023,0.82039165,119770.0,119760.0,0.00205001]
[1752524433239,0.82039165,119770.0,119760.0,0.00500001]
[1752524433451,0.82039165,119770.0,119760.0,1e-08]
[1752524435530,0.82019165,119770.0,119760.0,1e-08]
[1752524435967,0.18768489,119770.0,119760.0,0.00515001]
[1752524436182,0.31744489,119770.0,119760.0,0.00515001]
[1752524436807,0.31943489,119770.0,119760.0,1e-08]
[1752524437010,0.32193489,119770.0,119760.0,1e-08]
[1752524437218,0.31943489,119770.0,119760.0,1e-08]
[1752524437828,0.73885454,119770.0,119760.0,1e-08]
[1752524438039,0.60909454,119770.0,119760.0,1e-08]
[1752524438251,0.73877454,119770.0,119760.0,1e-08]
[1752524438595,0.73877454,119770.0,119760.0,0.00214001]
[1752524438807,0.73877454,119770.0,119760.0,0.00515001]
[1752524439070,0.60909454,119770.0,119760.0,0.00515001]
[1752524439294,0.73873454,119770.0,119760.0,1e-08]
[1752524439641,0.31931489,119770.0,119760.0,1e-08]
[1752524439851,0.73873454,119770.0,119760.0,1e-08]
[1752524440061,0.31732489,119770.0,119760.0,0.00515001]
[1752524440274,0.18768489,119770.0,119760.0,0.00515001]
[1752524440929,0.18768489,119770.0,119760.0,0.03545001]
[1752524441175,0.31736489,119770.0,119760.0,0.03545001]
[1752524441823,0.31336489,119770.0,119760.0,0.03545]
[1752524442035,0.31436489,119770.0,119760.0,0.03745]
[1752524442707,0.18468489,119770.0,119760.0,0.21280055]
[1752524442969,0.15568743,119770.0,119760.0,0.21280062]
[1752524443211,0.30597598,119770.0,119760.0,0.03745]
[1752524443456,0.30597598,119770.0,119760.0,0.21280062]
[1752524443653,0.30597598,119770.0,119760.0,0.22950033]
[1752524443853,0.30597598,119770.0,119760.0,0.22115051]
[1752524444108,0.30597598,119770.0,119760.0,0.22950033]
[1752524445274,0.30597598,119770.0,119760.0,0.22115051]
[1752524445737,0.29762672,119770.0,119760.0,0.03745]
[1752524445948,0.29762672,119770.0,119760.0,0.21280062]
[1752524446350,0.29762672,119770.0,119760.0,0.20445066]
[1752524446887,0.30597605,119770.0,119760.0,0.22115044]
[1752524447141,0.30597605,119770.0,119760.0,0.21280062]
[1752524447364,0.30597605,119770.0,119760.0,0.03745]
[1752524447582,0.30597605,119770.0,119760.0,0.20445066]
[1752524447800,0.30597605,119770.0,119760.0,0.21280069]
[1752524448226,0.30597605,119770.0,119760.0,0.03745]
[1752524451913,0.30597605,119770.0,119760.0,0.20445066]
[1752524452116,0.30597605,119770.0,119760.0,0.21280069]
[1752524452579,0.30597605,119770.0,119760.0,0.03745]
[1752524456952,0.30597605,119770.0,119760.0,0.20445066]
[1752524457164,0.15568722,119770.0,119760.0,0.23784966]
[1752524457392,0.33102327,119770.0,119760.0,0.23784966]
[1752524457837,0.001,119770.0,119760.0,0.74855457]
[1752524458061,0.001,119770.0,119760.0,1.51791237]
[1752524458521,0.001,119770.0,119760.0,1.08855457]
[1752524458775,0.001,119770.0,119760.0,1.66205322]
[1752524459017,0.001,119770.0,119760.0,1.23269542]
[1752524459237,1.319e-05,119770.0,119760.0,1.66005322]
[1752524459460,0.01034731,119790.0,119780.0,0.56291785]
[1752524459461,0.002,119790.0,119780.0,0.56291785]
[1752524459680,0.13994731,119790.0,119780.0,1.07576276]
[1752524459895,0.1316,119790.0,119780.0,1.07576276]
[1752524460150,0.002,119790.0,119780.0,1.07877276]
[1752524460385,0.01034738,119790.0,119780.0,1.08496546]
[1752524460603,0.01034738,119790.0,119780.0,0.10209711]
[1752524460604,0.61501231,119790.0,119780.0,0.10209711]
[1752524460866,0.17533591,119770.0,119760.0,0.0309]
[1752524461081,0.73429371,119770.0,119760.0,0.00515]
[1752524461318,0.17535055,119760.0,119740.0,0.20968194]
[1752524461541,0.60470835,119760.0,119750.0,0.08649711]
[1752524461766,0.1753652,119750.0,119740.0,0.10211097]
[1752524461979,0.1773452,119750.0,119740.0,0.08865097]
[1752524462229,0.606703,119750.0,119740.0,0.08865097]
[1752524462442,0.1773452,119750.0,119740.0,0.08865097]
[1752524462925,0.1753652,119750.0,119740.0,0.08865097]
[1752524463810,0.1763652,119750.0,119740.0,0.09165097]
[1752524464098,0.1753652,119750.0,119740.0,0.08865097]
[1752524464311,0.1753652,119750.0,119740.0,0.09065097]
[1752524465456,0.1773352,119750.0,119740.0,0.09065097]
[1752524465688,0.1753652,119750.0,119740.0,0.09065097]
[1752524467920,0.1753652,119750.0,119740.0,0.29783095]
[1752524468773,0.1753652,119750.0,119740.0,0.31453358]
[1752524468986,0.3049652,119750.0,119740.0,0.12245097]
[1752524469449,0.3049652,119750.0,119740.0,0.09065097]
[1752524470515,0.1773352,119750.0,119740.0,0.00930386]
[1752524470741,0.3069352,119750.0,119740.0,0.00930386]
[1752524472546,0.3069352,119750.0,119740.0,0.00415386]
[1752524472775,0.76080856,119750.0,119740.0,0.00415386]
[1752524473702,0.3413452,119750.0,119740.0,0.00415386]
[1752524473901,0.3228352,119750.0,119740.0,0.00415386]
[1752524474131,0.3228352,119750.0,119740.0,0.00215386]
[1752524474586,0.3228352,119750.0,119740.0,0.00315386]
[1752524474799,0.3228352,119750.0,119740.0,0.00836386]
[1752524475028,0.3228352,119750.0,119740.0,0.00315386]
[1752524476681,0.3411452,119750.0,119740.0,0.00315386]
[1752524476898,0.76060856,119750.0,119740.0,0.00315386]
[1752524477602,0.3411452,119750.0,119740.0,0.00315386]
[1752524478422,0.8859427,119750.0,119740.0,0.00315386]
[1752524479946,0.84195567,119750.0,119740.0,0.00315386]
[1752524484367,0.42249231,119750.0,119740.0,0.00315386]
[1752524484601,0.84195567,119750.0,119740.0,0.00315386]
[1752524487014,0.8521738,119750.0,119740.0,0.00315386]
[1752524489251,0.7225738,119750.0,119740.0,0.00315386]
[1752524489463,0.8521738,119750.0,119740.0,0.00315386]
[1752524489939,0.93349114,119750.0,119740.0,0.00315386]
[1752524491974,0.8521738,119750.0,119740.0,0.00315386]
[1752524493019,0.8521738,119750.0,119740.0,0.00215386]
[1752524493645,0.8531738,119750.0,119740.0,0.00215386]
[1752524495187,0.8506638,119750.0,119740.0,0.00215386]
[1752524495402,0.8531738,119750.0,119740.0,0.00215386]
[1752524495604,0.8506638,119750.0,119740.0,0.00215386]
[1752524495814,0.93449114,119750.0,119740.0,0.00215386]
[1752524496026,0.93198114,119750.0,119740.0,0.00215386]
[1752524496450,0.93198114,119750.0,119740.0,0.03965386]
[1752524496451,0.3059652,119750.0,119740.0,0.03965386]
[1752524500376,0.1763652,119750.0,119740.0,0.03965386]
[1752524500612,0.3079452,119750.0,119740.0,0.03965386]
[1752524501181,0.1783452,119750.0,119740.0,0.03965386]
[1752524501413,0.3079452,119750.0,119740.0,0.03965386]
[1752524501858,0.3059652,119750.0,119740.0,0.03965386]
[1752524503207,0.3059652,119750.0,119740.0,0.21503384]
[1752524503427,0.3059652,119750.0,119740.0,0.04800528]
[1752524503864,0.3059652,119750.0,119740.0,0.03965386]
[1752524508185,0.1306,119750.0,119740.0,0.73250293]
[1752524508427,0.14730041,119750.0,119740.0,0.31308295]
[1752524508645,0.16400145,119750.0,119740.0,0.31308295]
[1752524508868,0.17235211,119750.0,119740.0,0.31308295]
[1752524509089,0.16400145,119750.0,119740.0,0.31308295]
[1752524509329,0.15565093,119750.0,119740.0,0.31308295]
[1752524509553,0.14730041,119750.0,119740.0,0.31308295]
[1752524509796,0.15565086,119750.0,119740.0,0.31308295]
[1752524510287,0.33101662,119750.0,119740.0,0.30473202]
[1752524510534,0.14730076,119750.0,119740.0,0.31308295]
[1752524510764,0.14726041,119750.0,119740.0,0.31308295]
[1752524510990,0.15561086,119750.0,119740.0,0.31308295]
[1752524511916,0.16396138,119750.0,119740.0,0.31308295]
[1752524512853,0.15561086,119750.0,119740.0,0.31308295]
[1752524513309,0.1389101,119750.0,119740.0,0.31308295]
[1752524513550,0.1389101,119750.0,119740.0,0.73250293]
[1752524513780,0.001,119750.0,119740.0,1.07250293]
[1752524514216,0.001,119750.0,119740.0,1.08704378]
[1752524515814,0.13790954,119760.0,119750.0,0.57900681]
[1752524516050,0.13790947,119760.0,119750.0,0.66232392]
[1752524516270,0.12956,119760.0,119750.0,1.0849739]
[1752524516494,0.1379094,119760.0,119750.0,1.0849739]
[1752524516953,0.12956,119760.0,119750.0,1.0849739]
[1752524517190,0.13056,119760.0,119750.0,1.0889739]
[1752524517638,0.13890954,119760.0,119750.0,1.0889739]
[1752524517887,0.13056,119760.0,119750.0,1.0889739]
[1752524518126,0.13890947,119760.0,119750.0,1.0889739]
[1752524518587,0.14725901,119760.0,119750.0,1.0889739]
[1752524520687,0.31426051,119760.0,119750.0,0.46294711]
[1752524520923,0.38195163,119760.0,119750.0,0.0092]
[1752524521142,0.38195163,119760.0,119750.0,0.004]
[1752524521370,0.91470884,119760.0,119750.0,0.004]
[1752524521858,0.99605595,119760.0,119750.0,0.004]
[1752524522096,1.33605595,119760.0,119750.0,0.004]
[1752524522570,1.33605595,119760.0,119740.0,0.00215386]
[1752524522571,0.2076652,119750.0,119740.0,0.00215386]
[1752524522792,0.2121552,119750.0,119740.0,0.00215386]
[1752524523022,0.3417152,119750.0,119740.0,0.00215386]
[1752524523446,0.3392952,119750.0,119740.0,0.00215386]
[1752524523700,0.3069952,119750.0,119740.0,0.00215386]
[1752524524596,0.3079952,119750.0,119740.0,0.00415386]
[1752524527242,0.18471572,119750.0,119740.0,0.01448528]
[1752524527512,0.31427558,119750.0,119740.0,0.2146337]
[1752524527741,0.31427558,119750.0,119740.0,0.21463384]
[1752524527974,0.29757461,119750.0,119740.0,0.03925386]
[1752524528215,0.29757461,119750.0,119740.0,0.02425386]
[1752524529305,0.29757461,119750.0,119740.0,0.17628242]
[1752524529453,0.29757461,119750.0,119740.0,0.00925386]
[1752524531478,0.29757461,119750.0,119740.0,0.17628242]
[1752524531697,0.29757461,119750.0,119740.0,0.18463384]
[1752524531898,0.29757461,119750.0,119740.0,0.01760528]
[1752524532099,0.29757461,119750.0,119740.0,0.00925386]
[1752524532640,0.29757461,119750.0,119740.0,0.17628242]
[1752524533577,0.29757461,119750.0,119740.0,0.00925386]
[1752524534323,0.29955461,119750.0,119740.0,0.00925386]
[1752524535502,0.29757461,119750.0,119740.0,0.17628242]
[1752524536078,0.29757461,119750.0,119740.0,0.18463384]
[1752524536286,0.29757461,119750.0,119740.0,0.19298519]
[1752524536981,0.31427558,119750.0,119740.0,0.24138761]
[1752524537185,0.33097697,119750.0,119740.0,0.24973861]
[1752524537401,0.32262659,119750.0,119740.0,0.24138761]
[1752524538245,0.0093501,119750.0,119740.0,0.75050528]
[1752524538474,0.13056,119750.0,119740.0,1.09050528]
[1752524538692,0.13891024,119750.0,119740.0,1.09050528]
[1752524538925,0.13056,119750.0,119740.0,1.09050528]
[1752524539775,0.01669761,119770.0,119760.0,0.19204991]
[1752524539984,0.16295578,119770.0,119760.0,0.64504989]
[1752524540191,0.16295578,119770.0,119760.0,0.64816989]
[1752524540401,0.17130504,119770.0,119760.0,0.64816989]
[1752524540621,0.17130504,119770.0,119760.0,0.22874991]
[1752524540859,0.32994306,119770.0,119760.0,0.21205062]
[1752524541061,0.31333189,119770.0,119760.0,0.0367]
[1752524541267,0.31333189,119770.0,119760.0,0.21205069]
[1752524542131,0.31333189,119770.0,119760.0,0.0208]
[1752524542565,0.31333189,119770.0,119760.0,0.18780066]
[1752524543238,0.31333189,119770.0,119760.0,0.21960037]
[1752524543513,0.14625831,119770.0,119760.0,0.22794998]
[1752524543714,0.31324503,119770.0,119760.0,0.22794998]
[1752524543923,0.32159436,119770.0,119760.0,0.22794998]
[1752524544271,0.31324503,119770.0,119760.0,0.23629952]
[1752524544486,0.31324503,119770.0,119760.0,0.22794998]
[1752524545513,0.01669782,119770.0,119760.0,0.73706661]
[1752524545735,0.15460694,119770.0,119760.0,0.73706661]
[1752524546183,0.15460694,119770.0,119760.0,0.31764663]
[1752524546603,0.13790884,119770.0,119760.0,0.31764663]
[1752524546815,0.12486877,119770.0,119760.0,0.31764663]
[1752524547018,0.13321775,119770.0,119760.0,0.31764663]
[1752524547446,0.14991606,119770.0,119760.0,0.31764663]
[1752524547658,0.14991599,119770.0,119760.0,0.31764663]
[1752524547888,0.32525204,119770.0,119760.0,0.31764663]
[1752524548097,0.32525204,119770.0,119760.0,0.31764677]
[1752524548304,0.14991599,119770.0,119760.0,0.32599631]
[1752524548752,0.31690271,119770.0,119760.0,0.32599631]
[1752524548968,0.32525197,119770.0,119760.0,0.32599631]
[1752524549181,0.32525197,119770.0,119760.0,0.29259773]
[1752524549182,0.31690355,119770.0,119760.0,0.29259773]
[1752524549389,0.3085545,119770.0,119760.0,0.29259773]
[1752524549602,0.17535055,119760.0,119750.0,0.03552]
[1752524549817,0.02505093,119750.0,119740.0,0.94710267]
[1752524550022,0.15457093,119750.0,119740.0,0.94908267]
[1752524550233,0.16292152,119750.0,119740.0,0.65308267]